bitfinex-derivatives/quotes_BTCF0:USTF0_20240913
["timestamp","ask_amount","ask_price","bid_price","bid_amount"]
[1726244220048,0.57357806,59633.0,59622.0,0.083848]
[1726244220243,0.3965,59632.0,59620.0,0.04946431]
[1726244220544,0.3608,59623.0,59615.0,0.27]
[1726244220745,0.7573,59632.0,59620.0,0.27]
[1726244221049,0.5595,59632.0,59627.0,0.083842]
[1726244221245,0.5595,59632.0,59620.0,0.27]
[1726244221553,0.5595,59632.0,59620.0,0.31946431]
[1726244221747,0.5595,59632.0,59630.0,0.083837]
[1726244222057,0.9203,59632.0,59626.0,0.083842]
[1726244222346,0.3608,59627.0,59626.0,0.083842]
[1726244223346,0.3608,59631.0,59630.0,0.083837]
[1726244223838,0.1987,59632.0,59630.0,0.083837]
[1726244224142,0.21277806,59633.0,59632.0,0.083835]
[1726244224347,0.57357806,59633.0,59632.0,0.083835]
[1726244225843,0.21277806,59633.0,59632.0,0.083835]
[1726244226441,0.02157806,59633.0,59632.0,0.084835]
[1726244226946,0.02157806,59633.0,59632.0,0.001]
[1726244227342,0.02357806,59633.0,59632.0,0.002]
[1726244228446,0.38437806,59633.0,59632.0,0.002]
[1726244228642,0.38437806,59633.0,59632.0,0.085835]
[1726244229148,0.02357806,59633.0,59632.0,0.085835]
[1726244229753,0.02357806,59633.0,59632.0,0.002]
[1726244230851,0.02357806,59633.0,59632.0,0.085835]
[1726244231239,0.38437806,59633.0,59632.0,0.085835]
[1726244231437,0.38437806,59633.0,59632.0,0.002]
[1726244231647,0.38437806,59633.0,59632.0,0.085835]
[1726244231838,0.38437806,59633.0,59632.0,0.002]
[1726244232344,0.08384,59628.0,59615.0,0.2214]
[1726244232652,0.6308,59623.0,59613.0,0.05030431]
[1726244232845,0.3608,59618.0,59617.0,0.083856]
[1726244233351,0.6308,59618.0,59610.0,0.04946431]
[1726244233655,0.6308,59618.0,59599.0,0.08014362]
[1726244233656,0.3608,59611.0,59609.0,0.075866]
[1726244233951,0.3608,59611.0,59607.0,0.08387]
[1726244233952,0.577,59610.0,59607.0,0.08387]
[1726244234652,0.577,59610.0,59609.0,0.083867]
[1726244234853,0.3608,59610.0,59609.0,0.086867]
[1726244235847,0.3608,59610.0,59609.0,0.003]
[1726244236057,0.37025894,59610.0,59609.0,0.003]
[1726244236452,0.58495894,59610.0,59609.0,0.003]
[1726244236651,1.97223894,59610.0,59600.0,0.083879]
[1726244236851,0.3608,59601.0,59600.0,0.083879]
[1726244238155,0.3608,59601.0,59600.0,0.084879]
[1726244238456,0.3608,59601.0,59594.0,0.325]
[1726244238664,0.2081,59600.0,59598.0,0.083882]
[1726244239152,0.27,59599.0,59584.0,0.27]
[1726244239450,0.3608,59595.0,59584.0,0.00936646]
[1726244239657,0.4095,59600.0,59579.0,0.27]
[1726244239658,0.4095,59600.0,59585.0,0.27]
[1726244239843,0.3608,59595.0,59594.0,0.27]
[1726244240044,0.3608,59595.0,59594.0,0.353888]
[1726244240249,0.3608,59595.0,59594.0,0.083888]
[1726244240651,0.3608,59595.0,59591.0,0.27]
[1726244240652,0.003,59600.0,59599.0,0.083881]
[1726244240957,0.009,59600.0,59599.0,0.083881]
[1726244241659,0.37863516,59601.0,59586.0,0.3608]
[1726244241660,0.37963516,59601.0,59600.0,0.08388]
[1726244242250,0.37863516,59601.0,59600.0,0.08388]
[1726244242656,0.37863516,59601.0,59599.0,0.001]
[1726244243047,0.014,59600.0,59599.0,0.001]
[1726244243653,0.39263516,59601.0,59599.0,0.001]
[1726244244354,0.014,59600.0,59599.0,0.001]
[1726244244559,0.014,59600.0,59599.0,0.083881]
[1726244245353,0.014,59600.0,59596.0,0.083885]
[1726244245575,0.4057,59599.0,59585.0,0.27]
[1726244245758,0.3608,59597.0,59583.0,0.3608]
[1726244246055,0.3608,59597.0,59585.0,0.27]
[1726244246261,0.3608,59597.0,59592.0,0.08389]
[1726244246450,0.4057,59599.0,59595.0,0.083885]
[1726244246647,0.3608,59596.0,59595.0,0.083885]
[1726244246849,0.3608,59596.0,59585.0,0.27]
[1726244247053,0.3608,59596.0,59583.0,0.00925075]
[1726244247054,0.3608,59586.0,59583.0,0.00925075]
[1726244247260,0.3608,59586.0,59580.0,0.27]
[1726244247457,0.3608,59586.0,59585.0,0.083901]
[1726244248157,0.3608,59591.0,59590.0,0.083893]
[1726244248462,0.3608,59596.0,59591.0,0.083891]
[1726244248764,0.3608,59596.0,59588.0,0.083895]
[1726244248765,0.3608,59592.0,59588.0,0.083895]
[1726244249164,0.3608,59592.0,59589.0,0.083894]
[1726244249758,0.2119,59595.0,59589.0,0.083894]
[1726244249964,0.00945062,59601.0,59600.0,0.16776]
[1726244250161,0.00843564,59613.0,59612.0,0.083863]
[1726244250351,0.3608,59614.0,59607.0,0.083869]
[1726244250551,0.3608,59608.0,59606.0,0.27]
[1726244250791,0.3608,59607.0,59596.0,0.208]
[1726244250954,0.3608,59607.0,59601.0,0.083877]
[1726244251159,0.3608,59602.0,59601.0,0.083877]
[1726244251751,0.3608,59602.0,59596.0,0.291885]
[1726244251960,0.36987184,59602.0,59598.0,0.083882]
[1726244252163,0.36987184,59602.0,59599.0,0.08388]
[1726244252860,0.36987184,59602.0,59591.0,0.19]
[1726244253052,0.3608,59594.0,59591.0,0.19]
[1726244253555,0.38387184,59602.0,59592.0,0.5034]
[1726244253753,0.38387184,59602.0,59591.0,0.18253]
[1726244253960,0.3608,59596.0,59594.0,0.083887]
[1726244254655,0.3608,59596.0,59593.0,0.083889]
[1726244254858,0.6308,59594.0,59584.0,0.04946431]
[1726244255061,0.6308,59594.0,59579.0,0.04946431]
[1726244255264,0.3608,59594.0,59593.0,0.083889]
[1726244255650,0.31883293,59594.0,59593.0,0.083889]
[1726244255856,0.31883293,59594.0,59593.0,0.084889]
[1726244256363,0.32800333,59594.0,59593.0,0.084889]
[1726244256763,0.33900333,59594.0,59593.0,0.084889]
[1726244257065,0.0201704,59594.0,59593.0,0.084889]
[1726244257266,0.0341704,59594.0,59593.0,0.084889]
[1726244257673,0.0341704,59594.0,59593.0,0.001]
[1726244257964,0.3041704,59594.0,59593.0,0.001]
[1726244258764,0.0341704,59594.0,59593.0,0.001]
[1726244258968,0.3041704,59594.0,59593.0,0.001]
[1726244260470,0.3949704,59594.0,59593.0,0.001]
[1726244260770,0.6649704,59594.0,59593.0,0.001]
[1726244262862,0.3949704,59594.0,59593.0,1.23815531]
[1726244263260,0.3949704,59594.0,59593.0,1.188289]
[1726244263460,0.3949704,59594.0,59593.0,1.17016589]
[1726244263673,0.3949704,59594.0,59593.0,1.1044]
[1726244264173,0.3949704,59594.0,59593.0,0.588289]
[1726244264474,0.3949704,59594.0,59593.0,0.57091888]
[1726244264770,0.3949704,59594.0,59593.0,0.5044]
[1726244264968,0.3949704,59594.0,59593.0,0.57091888]
[1726244265364,0.3949704,59594.0,59593.0,0.5044]
[1726244266076,0.3949704,59594.0,59593.0,0.57092166]
[1726244266465,0.3949704,59594.0,59593.0,0.5044]
[1726244267178,0.3949704,59594.0,59593.0,0.50754253]
[1726244267572,0.3949704,59594.0,59593.0,0.57406419]
[1726244268181,0.4788584,59594.0,59593.0,0.57406419]
[1726244268372,0.3949704,59594.0,59593.0,0.05403105]
[1726244268683,0.3949704,59594.0,59593.0,0.05402737]
[1726244268874,0.3949704,59594.0,59593.0,0.00414253]
[1726244274088,0.5849704,59594.0,59593.0,0.00414253]
[1726244275581,0.3949704,59594.0,59593.0,0.00414253]
[1726244276685,0.0271704,59594.0,59593.0,1.74223153]
[1726244276994,0.0271704,59594.0,59593.0,1.44787798]
[1726244277288,0.0271704,59594.0,59593.0,1.38143153]
[1726244277693,0.0271704,59594.0,59593.0,1.44789744]
[1726244277993,0.0271704,59594.0,59593.0,1.38143153]
[1726244278489,0.0271704,59594.0,59593.0,1.44790299]
[1726244278789,0.0271704,59594.0,59593.0,0.13788627]
[1726244278978,0.0271704,59594.0,59593.0,0.13788676]
[1726244279691,0.0271704,59594.0,59593.0,0.08803153]
[1726244279988,0.0271704,59594.0,59593.0,0.00414253]
[1726244281486,0.0301704,59594.0,59593.0,0.00414253]
[1726244290706,0.1140584,59594.0,59593.0,0.00414253]
[1726244291005,0.19,59585.0,59578.0,0.04985523]
[1726244291200,0.19,59585.0,59573.0,0.1989]
[1726244291201,0.083912,59577.0,59573.0,0.04985523]
[1726244291396,0.5508,59574.0,59570.0,0.04985523]
[1726244291598,0.3608,59571.0,59568.0,0.04985523]
[1726244291799,0.3936,59570.0,59565.0,0.04985523]
[1726244291999,0.5508,59566.0,59561.0,0.04985523]
[1726244292206,0.3608,59568.0,59565.0,0.19]
[1726244292407,0.3608,59574.0,59567.0,0.19]
[1726244292603,0.3608,59574.0,59573.0,0.083918]
[1726244292905,0.3608,59581.0,59573.0,0.083918]
[1726244293163,0.3608,59581.0,59575.0,0.083914]
[1726244293414,0.3608,59576.0,59575.0,0.083915]
[1726244295901,0.0094372,59581.0,59580.0,0.083908]
[1726244296105,0.3608,59587.0,59584.0,0.083902]
[1726244296307,0.3608,59587.0,59583.0,0.083903]
[1726244296611,0.19,59584.0,59580.0,0.083907]
[1726244296820,0.3748,59581.0,59580.0,0.083907]
[1726244297336,0.3748,59581.0,59575.0,0.0498494]
[1726244297612,0.3748,59581.0,59580.0,0.083908]
[1726244298419,0.3738,59581.0,59580.0,0.083908]
[1726244298608,0.013,59581.0,59580.0,1.187428]
[1726244298807,0.014,59587.0,59586.0,0.083899]
[1726244299103,0.014,59587.0,59586.0,0.873899]
[1726244299314,0.014,59587.0,59586.0,1.377379]
[1726244299719,0.00935745,59589.0,59588.0,0.083896]
[1726244299901,0.3608,59590.0,59588.0,0.083896]
[1726244300706,0.00848718,59590.0,59589.0,0.083895]
[1726244301016,0.3608,59595.0,59594.0,0.083888]
[1726244301313,0.37879717,59595.0,59594.0,0.083888]
[1726244301515,0.3608,59602.0,59601.0,0.083878]
[1726244301819,0.3608,59602.0,59601.0,0.273878]
[1726244302116,0.37852671,59602.0,59601.0,0.273878]
[1726244302616,0.36908319,59613.0,59612.0,0.083863]
[1726244303820,0.36908319,59613.0,59612.0,0.084863]
[1726244303821,0.40253588,59613.0,59612.0,0.084863]
[1726244304009,0.03345269,59613.0,59612.0,0.274863]
[1726244304410,0.04179129,59613.0,59612.0,0.274863]
[1726244305324,0.03345269,59613.0,59612.0,0.274863]
[1726244305515,0.03745269,59613.0,59612.0,0.274863]
[1726244305815,0.03745269,59613.0,59612.0,1.378103]
[1726244306315,0.03745269,59613.0,59612.0,1.377103]
[1726244306316,0.00945269,59613.0,59612.0,1.377103]
[1726244306521,0.021,59613.0,59612.0,1.461966]
[1726244306915,0.3608,59625.0,59624.0,0.083846]
[1726244307116,0.37016543,59625.0,59624.0,0.273846]
[1726244308716,0.37016543,59625.0,59624.0,0.274846]
[1726244309023,0.38416543,59625.0,59624.0,0.084846]
[1726244309410,0.39816543,59625.0,59624.0,0.085846]
[1726244309719,0.39816543,59625.0,59624.0,0.002]
[1726244309911,0.94896543,59625.0,59624.0,0.002]
[1726244310509,0.39816543,59625.0,59624.0,0.002]
[1726244310713,0.39816543,59625.0,59624.0,0.085846]
[1726244311320,0.39816543,59625.0,59624.0,0.275846]
[1726244311828,0.39816543,59625.0,59624.0,1.462852]
[1726244311829,0.028,59625.0,59624.0,1.462852]
[1726244312038,0.028,59625.0,59624.0,1.379006]
[1726244312319,0.028,59625.0,59624.0,0.085846]
[1726244312525,0.5788,59625.0,59624.0,0.002]
[1726244312918,0.3888,59625.0,59624.0,0.002]
[1726244313822,0.3888,59625.0,59624.0,0.085846]
[1726244317323,0.3888,59625.0,59624.0,0.002]
[1726244317922,0.3888,59625.0,59624.0,0.085846]
[1726244318811,0.3888,59625.0,59624.0,0.002]
[1726244319719,0.3888,59625.0,59624.0,0.085846]
[1726244320718,0.3888,59625.0,59624.0,0.002]
[1726244321124,0.7496,59625.0,59624.0,0.002]
[1726244321326,0.083853,59619.0,59610.0,0.0039]
[1726244321563,0.3608,59611.0,59602.0,0.083875]
[1726244321720,0.3608,59603.0,59602.0,0.083875]
[1726244321920,0.3608,59603.0,59599.0,0.19]
[1726244321921,0.1972,59610.0,59603.0,0.083875]
[1726244322125,0.1972,59610.0,59604.0,0.083873]
[1726244322428,0.1972,59610.0,59605.0,0.083872]
[1726244322830,0.3608,59606.0,59605.0,0.083872]
[1726244323721,0.37013208,59606.0,59605.0,0.083872]
[1726244324717,0.38413208,59606.0,59605.0,0.083872]
[1726244324913,0.02333208,59606.0,59605.0,0.083872]
[1726244325317,0.03733208,59606.0,59605.0,0.083872]
[1726244325519,0.54065208,59606.0,59594.0,0.00084]
[1726244325724,0.9116,59600.0,59586.0,0.1939]
[1726244325921,0.3608,59593.0,59586.0,0.19]
[1726244326748,0.3608,59593.0,59592.0,0.273891]
[1726244327824,0.00931383,59593.0,59592.0,0.273891]
[1726244328025,0.3608,59603.0,59601.0,0.083878]
[1726244328227,0.01,59600.0,59599.0,0.273881]
[1726244328426,0.01828848,59600.0,59599.0,0.273881]
[1726244328725,0.00828848,59600.0,59599.0,0.273881]
[1726244329027,0.3608,59603.0,59599.0,0.273881]
[1726244329323,0.3608,59603.0,59602.0,0.083877]
[1726244330820,0.00937168,59605.0,59604.0,0.083874]
[1726244331124,0.3608,59615.0,59612.0,0.083863]
[1726244332221,0.3748,59615.0,59613.0,0.083861]
[1726244332424,0.3888,59615.0,59614.0,0.27386]
[1726244333323,0.014,59615.0,59614.0,0.27386]
[1726244333524,0.028,59615.0,59614.0,0.27386]
[1726244333720,0.028,59615.0,59608.0,0.083867]
[1726244333925,0.3608,59609.0,59608.0,0.083867]
[1726244335518,0.3748,59609.0,59608.0,0.083867]
[1726244335935,0.02337099,59609.0,59608.0,0.083867]
[1726244336128,0.03437099,59609.0,59608.0,0.083867]
[1726244338526,0.03437099,59609.0,59608.0,1.187147]
[1726244338729,0.025,59609.0,59608.0,1.187147]
[1726244338931,0.3608,59622.0,59619.0,0.083852]
[1726244339434,0.37036134,59622.0,59619.0,0.083852]
[1726244339623,0.37036134,59622.0,59618.0,0.19]
[1726244339931,0.37036134,59622.0,59621.0,0.08385]
[1726244340526,0.38436134,59622.0,59619.0,0.083852]
[1726244341028,0.38436134,59622.0,59613.0,0.083861]
[1726244341029,0.19,59620.0,59613.0,0.083861]
[1726244341228,0.3608,59614.0,59613.0,0.083861]
[1726244341531,0.38436134,59622.0,59613.0,0.273861]
[1726244341833,0.3608,59617.0,59616.0,0.083856]
[1726244342041,0.3608,59617.0,59616.0,0.273856]
[1726244342420,0.38436134,59622.0,59621.0,0.08385]
[1726244342742,0.38436134,59622.0,59621.0,0.27385]
[1726244343035,0.37036134,59622.0,59621.0,0.27385]
[1726244343728,0.38436134,59622.0,59621.0,0.27385]
[1726244343930,0.39536134,59622.0,59621.0,0.27385]
[1726244344337,0.03456134,59622.0,59621.0,0.27385]
[1726244344633,0.03456134,59622.0,59621.0,0.32363811]
[1726244344829,0.03456134,59622.0,59621.0,0.27385]
[1726244345129,0.011,59622.0,59621.0,1.46086]
[1726244345336,0.014,59622.0,59621.0,1.46086]
[1726244345552,0.025,59622.0,59621.0,1.46086]
[1726244346123,0.014,59622.0,59621.0,1.52695618]
[1726244346322,0.026,59622.0,59621.0,1.52695618]
[1726244346937,0.014,59622.0,59621.0,1.33695618]
[1726244347127,0.025,59622.0,59621.0,1.37701]
[1726244348539,0.3608,59642.0,59621.0,1.29316]
[1726244348740,0.3608,59642.0,59641.0,0.19]
[1726244349428,0.3608,59642.0,59641.0,0.083822]
[1726244349839,0.3858,59642.0,59641.0,0.083822]
[1726244350637,0.3858,59642.0,59637.0,0.19]
[1726244351240,0.3858,59642.0,59641.0,0.083822]
[1726244351628,0.3858,59642.0,59637.0,0.19]
[1726244351937,0.3888,59642.0,59641.0,0.001]
[1726244352435,0.3748,59642.0,59641.0,0.274822]
[1726244352631,0.3718,59642.0,59641.0,0.274822]
[1726244352871,0.011,59642.0,59641.0,0.274822]
[1726244353238,0.008,59642.0,59641.0,0.274822]
[1726244353547,0.3608,59657.0,59641.0,1.378822]
[1726244353844,0.36992382,59657.0,59651.0,0.19]
[1726244354140,0.3608,59651.0,59649.0,0.08381]
[1726244354649,0.3608,59651.0,59650.0,0.083809]
[1726244355044,0.5508,59651.0,59646.0,0.083815]
[1726244355243,0.19,59647.0,59641.0,0.001]
[1726244355541,0.3718,59642.0,59641.0,0.001]
[1726244355744,0.38038433,59642.0,59641.0,0.001]
[1726244356040,0.38038433,59642.0,59631.0,0.0039]
[1726244356041,1.67338433,59642.0,59631.0,0.0039]
[1726244356234,1.67338433,59642.0,59631.0,0.083835]
[1726244356235,0.3608,59634.0,59631.0,0.083835]
[1726244356438,0.1991,59633.0,59631.0,0.083835]
[1726244358138,0.1991,59633.0,59632.0,0.083835]
[1726244358638,0.1991,59633.0,59632.0,0.634635]
[1726244358839,0.009,59634.0,59633.0,0.083833]
[1726244359041,0.01258433,59642.0,59632.0,1.2115]
[1726244359244,0.00858433,59642.0,59641.0,0.083822]
[1726244359546,0.7755,59646.0,59641.0,0.083822]
[1726244360242,0.7755,59646.0,59642.0,0.08382]
[1726244360437,0.7755,59646.0,59643.0,0.083819]
[1726244360940,0.7850523,59646.0,59644.0,0.083817]
[1726244361140,0.7850523,59646.0,59645.0,0.083816]
[1726244361335,0.4242523,59646.0,59645.0,0.083816]
[1726244362048,0.0095523,59646.0,59645.0,0.083816]
[1726244362346,0.2083,59650.0,59646.0,0.083814]
[1726244362546,0.2083,59650.0,59644.0,0.19]
[1726244362738,0.012,59646.0,59645.0,0.083816]
[1726244363537,0.21921904,59650.0,59645.0,0.083816]
[1726244363737,0.21921904,59650.0,59644.0,0.19]
[1726244363738,0.23121904,59650.0,59646.0,0.083814]
[1726244364146,0.23121904,59650.0,59647.0,0.083813]
[1726244364442,0.23121904,59650.0,59644.0,0.001]
[1726244364837,0.23121904,59650.0,59647.0,0.083812]
[1726244365038,0.24321904,59650.0,59647.0,0.083812]
[1726244365241,0.23121904,59650.0,59647.0,0.083812]
[1726244365470,0.21921904,59650.0,59649.0,0.273811]
[1726244365738,0.23121904,59650.0,59649.0,0.273811]
[1726244366137,0.24321904,59650.0,59647.0,0.001]
[1726244366342,0.43321904,59650.0,59647.0,0.001]
[1726244366536,0.93617904,59650.0,59647.0,0.001]
[1726244366740,0.93617904,59650.0,59646.0,0.083814]
[1726244366741,0.92417904,59650.0,59646.0,0.083814]
[1726244366941,0.43321904,59650.0,59649.0,0.001]
[1726244367448,1.52413904,59650.0,59649.0,0.001]
[1726244368236,1.52413904,59650.0,59642.0,0.083819]
[1726244368437,0.42121904,59650.0,59647.0,0.001]
[1726244368647,0.43321904,59650.0,59647.0,0.001]
[1726244369148,0.43321904,59650.0,59637.0,0.19]
[1726244369363,0.43321904,59650.0,59645.0,0.083816]
[1726244369748,0.43321904,59650.0,59641.0,0.444621]
[1726244370048,0.43321904,59650.0,59649.0,0.001]
[1726244370242,0.24321904,59650.0,59649.0,0.084811]
[1726244370690,0.24321904,59650.0,59649.0,0.168622]
[1726244370951,0.24421904,59650.0,59649.0,0.084811]
[1726244371343,0.02291904,59650.0,59649.0,0.084811]
[1726244371545,0.03791904,59650.0,59649.0,0.084811]
[1726244371854,0.03791904,59650.0,59649.0,0.274811]
[1726244372048,0.03791904,59650.0,59649.0,0.358622]
[1726244372255,0.3959,59662.0,59661.0,0.083794]
[1726244372555,0.3959,59662.0,59661.0,0.273794]
[1726244372738,0.40694389,59662.0,59661.0,0.273794]
[1726244374051,0.01104389,59662.0,59661.0,0.357588]
[1726244374349,0.1998,59672.0,59671.0,0.08378]
[1726244374545,0.1998,59672.0,59671.0,0.27378]
[1726244374741,0.20838531,59672.0,59671.0,0.27378]
[1726244375650,0.20838531,59672.0,59671.0,0.27478]
[1726244375858,0.20838531,59672.0,59666.0,0.083786]
[1726244375859,0.39838531,59672.0,59666.0,0.083786]
[1726244376061,0.3608,59667.0,59662.0,0.083792]
[1726244376243,0.5508,59665.0,59661.0,0.001]
[1726244376447,0.2104,59664.0,59661.0,0.001]
[1726244376654,0.3608,59665.0,59664.0,0.08379]
[1726244376977,0.3608,59665.0,59664.0,0.27379]
[1726244377159,0.3608,59667.0,59666.0,0.083787]
[1726244377452,0.57018531,59672.0,59671.0,0.08378]
[1726244377846,0.58111092,59672.0,59671.0,0.08378]
[1726244378247,0.58011092,59672.0,59671.0,0.08378]
[1726244378653,0.58111092,59672.0,59671.0,0.08478]
[1726244379068,0.58111092,59672.0,59671.0,0.08578]
[1726244380256,0.58111092,59672.0,59671.0,0.002]
[1726244381544,0.58011092,59672.0,59671.0,0.001]
[1726244381854,0.58111092,59672.0,59671.0,0.002]
[1726244384064,0.58111092,59672.0,59671.0,0.08578]
[1726244384947,0.38131092,59672.0,59671.0,0.08578]
[1726244385458,0.38031092,59672.0,59671.0,0.08478]
[1726244385655,0.38131092,59672.0,59671.0,0.08578]
[1726244386257,0.02051092,59672.0,59671.0,0.08578]
[1726244386851,0.01192561,59672.0,59671.0,0.08578]
[1726244387356,0.02020888,59672.0,59671.0,0.08578]
[1726244387557,0.3608,59677.0,59674.0,0.083775]
[1726244387866,0.3801231,59677.0,59676.0,0.19]
[1726244388158,0.3801231,59677.0,59676.0,0.273773]
[1726244388864,0.3811231,59677.0,59676.0,0.273773]
[1726244389453,0.37291025,59677.0,59676.0,0.274773]
[1726244389656,0.3608,59684.0,59676.0,0.274773]
[1726244389657,0.36929538,59684.0,59683.0,0.083763]
[1726244389856,0.3608,59684.0,59683.0,0.273763]
[1726244390257,0.37176372,59684.0,59683.0,0.776403]
[1726244390464,0.37176372,59684.0,59683.0,1.376403]
[1726244390761,0.37176372,59684.0,59683.0,0.273763]
[1726244391156,0.37176372,59684.0,59683.0,0.274763]
[1726244392065,0.37176372,59684.0,59683.0,0.275763]
[1726244393465,0.01096372,59684.0,59683.0,1.378403]
[1726244393671,0.3608,59696.0,59695.0,0.083746]
[1726244393867,0.36938052,59696.0,59695.0,0.273746]
[1726244394370,0.01966371,59696.0,59695.0,0.273746]
[1726244394670,0.3608,59701.0,59695.0,0.19]
[1726244394865,0.3608,59701.0,59700.0,0.19]
[1726244395060,0.36910216,59701.0,59700.0,0.273739]
[1726244395263,0.38012861,59701.0,59700.0,0.273739]
[1726244396168,0.38012861,59701.0,59700.0,0.274739]
[1726244398077,0.01102645,59701.0,59700.0,0.634539]
[1726244398291,0.3608,59710.0,59700.0,0.634539]
[1726244398292,0.3608,59710.0,59709.0,0.083726]
[1726244398463,0.3608,59710.0,59709.0,0.273726]
[1726244398863,0.36903764,59710.0,59709.0,0.273726]
[1726244399390,0.38009072,59710.0,59709.0,0.273726]
[1726244399873,0.38009072,59710.0,59709.0,0.274726]
[1726244400176,0.38009072,59710.0,59709.0,0.275726]
[1726244400769,0.38009072,59710.0,59709.0,0.002]
[1726244400971,0.74089072,59710.0,59709.0,0.002]
[1726244401561,0.38009072,59710.0,59709.0,0.192]
[1726244401760,0.38009072,59710.0,59709.0,0.275726]
[1726244402768,0.38009072,59710.0,59709.0,0.192]
[1726244402967,0.74089072,59710.0,59709.0,0.002]
[1726244403201,0.74089072,59710.0,59709.0,0.001]
[1726244403377,0.74089072,59710.0,59709.0,0.002]
[1726244405971,0.74089072,59710.0,59709.0,0.001]
[1726244406168,0.74089072,59710.0,59709.0,0.002]
[1726244406366,1.84333072,59710.0,59696.0,0.0039]
[1726244406580,0.3608,59697.0,59690.0,0.05345395]
[1726244406776,0.3608,59691.0,59689.0,0.13330795]
[1726244406969,0.31070178,59691.0,59689.0,0.13330795]
[1726244407168,0.31070178,59691.0,59689.0,0.32330795]
[1726244407378,0.31070178,59691.0,59688.0,0.04955395]
[1726244407572,0.31070178,59691.0,59686.0,0.23955395]
[1726244407873,0.31070178,59691.0,59686.0,0.19]
[1726244408176,0.3608,59690.0,59682.0,0.19]
[1726244408372,0.3608,59690.0,59682.0,0.273764]
[1726244408563,0.3608,59690.0,59682.0,0.19]
[1726244408965,0.3608,59685.0,59682.0,0.19]
[1726244409673,0.3608,59689.0,59684.0,0.083761]
[1726244409873,0.3608,59689.0,59685.0,0.273759]
[1726244410978,0.37193888,59689.0,59685.0,0.19]
[1726244411377,0.73273888,59689.0,59685.0,0.19]
[1726244412078,0.73473888,59689.0,59686.0,0.083759]
[1726244412277,0.73473888,59689.0,59685.0,0.002]
[1726244412984,0.73473888,59689.0,59686.0,0.19]
[1726244413573,0.73473888,59689.0,59688.0,0.083756]
[1726244413781,0.37393888,59689.0,59688.0,0.083756]
[1726244414182,0.37393888,59689.0,59686.0,0.19]
[1726244414395,0.37393888,59689.0,59687.0,0.083757]
[1726244414769,0.37393888,59689.0,59688.0,0.083756]
[1726244415087,0.3628,59689.0,59688.0,0.083756]
[1726244415284,0.3628,59689.0,59688.0,1.186356]
[1726244415979,0.3618,59689.0,59688.0,1.186356]
[1726244416190,0.3628,59689.0,59688.0,1.187356]
[1726244416680,0.3618,59689.0,59688.0,1.186356]
[1726244416879,0.31252026,59689.0,59688.0,1.187356]
[1726244417079,0.31252026,59689.0,59688.0,0.587356]
[1726244417383,0.002,59689.0,59688.0,0.587356]
[1726244417782,0.002,59689.0,59688.0,0.084756]
[1726244418295,0.002,59689.0,59688.0,0.15099117]
[1726244418973,0.002,59689.0,59688.0,0.084756]
[1726244419572,0.002,59689.0,59688.0,0.168512]
[1726244420585,0.002,59689.0,59688.0,0.73955811]
[1726244420883,0.2125,59705.0,59704.0,0.083733]
[1726244421084,0.36172,59706.0,59704.0,0.19]
[1726244421286,0.36172,59706.0,59705.0,0.083732]
[1726244421683,0.3608,59706.0,59705.0,0.13340383]
[1726244422079,0.01373428,59706.0,59705.0,0.083732]
[1726244422284,0.3608,59714.0,59713.0,0.083721]
[1726244422484,0.37440138,59714.0,59713.0,0.273721]
[1726244422679,0.38290534,59714.0,59713.0,0.273721]
[1726244423491,0.3608,59720.0,59719.0,0.083712]
[1726244423687,0.3608,59720.0,59719.0,0.273712]
[1726244423882,0.36920842,59720.0,59719.0,0.273712]
[1726244424094,0.3608,59735.0,59719.0,0.79]
[1726244424283,0.3608,59735.0,59734.0,0.19]
[1726244425489,0.3608,59735.0,59734.0,0.273691]
[1726244426082,0.01377996,59740.0,59739.0,0.083684]
[1726244426284,0.2005,59747.0,59739.0,0.083684]
[1726244426285,0.3608,59746.0,59739.0,0.083684]
[1726244427289,0.001,59740.0,59739.0,0.084684]
[1726244427688,0.3618,59740.0,59739.0,0.084684]
[1726244427891,0.001,59740.0,59739.0,0.085684]
[1726244428692,0.01474313,59740.0,59739.0,0.084684]
[1726244428895,0.001,59740.0,59739.0,0.085684]
[1726244429195,0.3618,59740.0,59739.0,0.085684]
[1726244429406,0.3608,59740.0,59739.0,0.085684]
[1726244429889,0.3608,59740.0,59739.0,0.084684]
[1726244430197,0.3608,59740.0,59739.0,0.085684]
[1726244430198,0.3618,59740.0,59739.0,0.085684]
[1726244430592,0.3618,59740.0,59739.0,0.275684]
[1726244430893,0.001,59740.0,59739.0,0.275684]
[1726244433891,0.001,59740.0,59739.0,0.275684]
[1726244434493,0.3618,59740.0,59739.0,0.275684]
[1726244434693,0.001,59740.0,59739.0,0.275684]
[1726244434890,0.001,59740.0,59739.0,0.359368]
[1726244435294,0.01405844,59744.0,59743.0,0.083679]
[1726244435492,0.3608,59747.0,59746.0,0.083675]
[1726244436801,0.00847877,59751.0,59750.0,0.083669]
[1726244436999,0.3608,59751.0,59750.0,0.273669]
[1726244437798,0.3608,59751.0,59746.0,0.19]
[1726244438100,0.19,59747.0,59734.0,0.0039]
[1726244438301,0.19,59747.0,59730.0,0.19096]
[1726244438302,0.3608,59740.0,59730.0,0.19096]
[1726244438613,0.3608,59740.0,59730.0,0.19]
[1726244438905,0.3608,59740.0,59739.0,0.083684]
[1726244439893,0.3618,59740.0,59739.0,0.083684]
[1726244440100,0.3618,59740.0,59730.0,0.191]
[1726244440405,0.3608,59735.0,59734.0,0.273691]
[1726244440609,0.31074765,59735.0,59734.0,0.273691]
[1726244440796,0.0085668,59735.0,59734.0,0.273691]
[1726244441098,0.37668543,59740.0,59739.0,0.083684]